[Event "Cracovia Festival-A 2023"]
[Site "Krakow"]
[Date "2023.12.29"]
[Round "3.45"]
[White "Biesiadecki, Adam"]
[Black "Loftgaard, Mikkel Vinh"]
[Result "1/2-1/2"]
[ECO "E48"]
[WhiteElo "2102"]
[BlackElo "2322"]
[Annotator "ChessBase"]
[PlyCount "154"]
[EventDate "2023.12.24"]
[EventType "swiss"]
[EventCountry "POL"]
[SourceTitle "playchess.com"]
[Source "ChessBase"]
[SourceQuality "1"]
[TimeControl "40/5400+30:1800+30"]

1. d4 {[%emt 0:00:03]} Nf6 {[%emt 0:00:03]} 2. c4 {[%emt 0:00:08]} e6 3. Nc3 {[%emt 0:00:10]} Bb4 {[%emt 0:00:05]} 4. e3 {[%emt 0:00:11]} O-O {[%emt 0:00:05]} 5. Bd3 {[%emt 0:00:05]} d5 {[%emt 0:00:05]} 6. cxd5 {[%emt 0:00:10]} exd5 {[%emt 0:00:07]} 7. Nge2 {[%emt 0:00:19]} c5 {[%emt 0:02:29]} 8. O-O {[%emt 0:00:18]} Nc6 {[%emt 0:00:06]} 9. a3 {[%emt 0:04:29]} cxd4 {[%emt 0:03:47]} 10. axb4 {[%emt 0:00:39]} dxc3 {[%emt 0:00:03]} 11. bxc3 {[%emt 0:00:09]} Qc7 {[%emt 0:03:48]} 12. Ng3 {[%emt 0:20:26]} Ne5 {[%emt 0:05:09]} 13. Qc2 {[%emt 0:04:59]} h5 {[%emt 0:06:59]} 14. h4 {[%emt 0:04:52]} Qe7 {[%emt 0:11:53]} 15. Ne2 {[%emt 0:12:16]} Nfg4 {[%emt 0:01:17]} 16. g3 {[%emt 0:08:20]} Nf3+ {[%emt 0:01:06]} 17. Kh1 {[%emt 0:00:07]} Nxh4 {[%emt 0:17:53]} 18. Nf4 {[%emt 0:08:52]} Ne5 {[%emt 0:02:27]} 19. b5 {[%emt 0:10:30]} Nxd3 {[%emt 0:04:27]} 20. Qxd3 {[%emt 0:02:38]} Bf5 {[%emt 0:00:19]} 21. Qd1 {[%emt 0:00:19]} Nf3 {[%emt 0:05:30]} 22. Ba3 {[%emt 0:06:52]} Qe4 {[%emt 0:04:39]} 23. Bxf8 {[%emt 0:03:01]} Kxf8 {[%emt 0:09:55]} 24. Qxd5 {[%emt 0:05:46]} Nd2+ {[%emt 0:03:18]} 25. f3 {[%emt 0:00:50]} Qxd5 {[%emt 0:02:33]} 26. Nxd5 {[%emt 0:00:02]} Nxf1 {[%emt 0:00:11]} 27. Rxf1 {[%emt 0:00:03]} Bd3 {[%emt 0:01:10]} 28. Ra1 {[%emt 0:01:21]} Rd8 {[%emt 0:01:08]} 29. e4 {[%emt 0:00:33]} f5 {[%emt 0:00:29]} 30. Nc7 {[%emt 0:01:59]} Rc8 {[%emt 0:01:28]} 31. Ne6+ {[%emt 0:00:22]} Kf7 {[%emt 0:00:36]} 32. exf5 {[%emt 0:01:10]} Bxb5 {[%emt 0:00:58]} 33. Nd4 {[%emt 0:01:17]} Bd3 {[%emt 0:01:02]} 34. Rxa7 {[%emt 0:01:13]} Ba6 {[%emt 0:00:02]} 35. Nb3 {[%emt 0:00:29]} Rxc3 {[%emt 0:01:26]} 36. Na5 {[%emt 0:00:53]} Rc7 {[%emt 0:01:35]} 37. Ra8 {[%emt 0:00:11]} Rc5 {[%emt 0:00:40]} 38. Nb3 {[%emt 0:00:28]} Rxf5 {[%emt 0:01:01]} 39. Kg2 {[%emt 0:00:23]} Rb5 {[%emt 0:00:14]} 40. Nd4 {[%emt 0:00:00]} Rb2+ {[%emt 0:00:00]} 41. Kg1 {[%emt 0:02:33]} Bc4 {[%emt 0:04:45]} 42. Rc8 {[%emt 0:00:56]} b5 {[%emt 0:02:29]} 43. Rc7+ {[%emt 0:00:08]} Kf6 {[%emt 0:00:16]} 44. f4 {[%emt 0:00:20]} Rd2 {[%emt 0:03:48]} 45. Nf3 {[%emt 0:04:11]} Rd1+ {[%emt 0:01:50]} 46. Kf2 {[%emt 0:00:33]} Bd5 {[%emt 0:00:53]} 47. Ne5 {[%emt 0:01:52]} b4 {[%emt 0:03:59]} 48. Ke2 {[%emt 0:05:15]} Rg1 {[%emt 0:00:48]} 49. Nd3 {[%emt 0:01:23]} b3 {[%emt 0:01:17]} 50. Rc5 {[%emt 0:02:37]} Ke6 {[%emt 0:00:58]} 51. Ke3 {[%emt 0:00:54]} Kd6 {[%emt 0:04:55]} 52. Kd4 {[%emt 0:00:51]} Bf7 {[%emt 0:05:15]} 53. Rg5 {[%emt 0:01:35]} g6 {[%emt 0:01:23]} 54. Kc3 {[%emt 0:02:47]} Rg2 {[%emt 0:00:53]} 55. f5 {[%emt 0:01:21]} Rc2+ {[%emt 0:03:44]} 56. Kd4 {[%emt 0:01:50]} gxf5 {[%emt 0:02:27]} 57. Rxf5 {[%emt 0:00:18]} Ke6 {[%emt 0:00:27]} 58. Rb5 {[%emt 0:00:38]} Kf6 {[%emt 0:00:14]} 59. Rb6+ {[%emt 0:00:27]} Kf5 {[%emt 0:01:26]} 60. Rb5+ {[%emt 0:00:45]} Kf6 {[%emt 0:02:32]} 61. Rb6+ {[%emt 0:00:25]} Kg5 {[%emt 0:01:02]} 62. Rb5+ {[%emt 0:00:16]} Kg4 {[%emt 0:00:48]} 63. Ne5+ {[%emt 0:00:07]} Kxg3 {[%emt 0:00:02]} 64. Nxf7 {[%emt 0:00:09]} b2 {[%emt 0:00:05]} 65. Rb3+ {[%emt 0:00:30]} Kf4 {[%emt 0:00:56]} 66. Ne5 {[%emt 0:00:39]} Re2 {[%emt 0:01:22]} 67. Nd3+ {[%emt 0:00:12]} Kg4 {[%emt 0:00:19]} 68. Nxb2 {[%emt 0:00:26]} h4 {[%emt 0:00:07]} 69. Rb8 {[%emt 0:00:12]} h3 {[%emt 0:00:10]} 70. Nd3 {[%emt 0:00:17]} h2 {[%emt 0:00:19]} 71. Rg8+ {[%emt 0:00:03]} Kf3 {[%emt 0:00:24]} 72. Rf8+ {[%emt 0:00:11]} Kg4 {[%emt 0:00:14]} 73. Rg8+ {[%emt 0:00:20]} Kf5 {[%emt 0:00:12]} 74. Rh8 {[%emt 0:00:11]} Kg5 {[%emt 0:00:32]} 75. Rg8+ {[%emt 0:00:17]} Kf5 {[%emt 0:00:31]} 76. Rf8+ {[%emt 0:00:15]} Kg6 {[%emt 0:00:35]} 77. Rh8 {[%emt 0:00:26]} Ra2 {[%emt 0:00:36]} 1/2-1/2

[Event "Cracovia Festival-A 2023"]
[Site "Krakow"]
[Date "2023.12.29"]
[Round "3.46"]
[White "Gaurav Rajesh Zagade"]
[Black "Panek, Bartosz"]
[Result "1/2-1/2"]
[ECO "D35"]
[WhiteElo "2126"]
[BlackElo "2232"]
[Annotator "ChessBase"]
[PlyCount "80"]
[EventDate "2023.12.24"]
[EventType "swiss"]
[EventCountry "POL"]
[SourceTitle "playchess.com"]
[Source "ChessBase"]
[SourceQuality "1"]
[TimeControl "40/5400+30:1800+30"]

1. d4 {[%emt 0:00:03]} Nf6 {[%emt 0:03:04]} 2. c4 {[%emt 0:00:04]} e6 {[%emt 0:00:07]} 3. Nc3 {[%emt 0:00:09]} d5 {[%emt 0:00:06]} 4. cxd5 {[%emt 0:00:06]} Nxd5 {[%emt 0:00:05]} 5. e4 {[%emt 0:01:53]} Nxc3 {[%emt 0:00:04]} 6. bxc3 {[%emt 0:00:06]} c5 {[%emt 0:00:07]} 7. Rb1 {[%emt 0:01:02]} Be7 {[%emt 0:05:38]} 8. Nf3 {[%emt 0:01:04]} O-O {[%emt 0:00:34]} 9. h4 {[%emt 0:00:57]} b6 {[%emt 0:00:42]} 10. h5 {[%emt 0:01:20]} cxd4 {[%emt 0:05:24]} 11. cxd4 {[%emt 0:03:19]} h6 {[%emt 0:00:20]} 12. Rh3 {[%emt 0:01:51]} Qc7 {[%emt 0:06:52]} 13. Rg3 {[%emt 0:04:55]} Kh8 {[%emt 0:00:26]} 14. Bxh6 {[%emt 0:30:34]} gxh6 {[%emt 0:00:24]} 15. Qd2 {[%emt 0:00:07]} Kh7 {[%emt 0:01:12]} 16. e5 {[%emt 0:03:44]} Ba6 {[%emt 0:10:40]} 17. Bxa6 {[%emt 0:05:09]} Nxa6 {[%emt 0:00:07]} 18. Qd3+ {[%emt 0:00:46]} Kh8 {[%emt 0:00:07]} 19. Qxa6 {[%emt 0:04:29]} Qc2 {[%emt 0:03:34]} 20. Rd1 {[%emt 0:07:44]} Bb4+ {[%emt 0:01:27]} 21. Nd2 {[%emt 0:00:26]} Rg8 {[%emt 0:09:20]} 22. Qb7 {[%emt 0:03:51]} Raf8 {[%emt 0:05:28]} 23. Rb3 {[%emt 0:05:25]} Ba5 {[%emt 0:00:14]} 24. Qf3 {[%emt 0:01:08]} Rg5 {[%emt 0:00:32]} 25. g3 {[%emt 0:08:40]} Qxa2 {[%emt 0:02:36]} 26. Ke2 {[%emt 0:01:30]} Rf5 {[%emt 0:02:16]} 27. Qd3 {[%emt 0:01:22]} Rd8 {[%emt 0:01:26]} 28. Qe3 {[%emt 0:03:19]} Rg5 {[%emt 0:09:25]} 29. Rd3 {[%emt 0:00:28]} Qc2 {[%emt 0:02:05]} 30. Rh1 {[%emt 0:01:02]} Bb4 {[%emt 0:01:37]} 31. Rh4 {[%emt 0:02:44]} a5 {[%emt 0:00:37]} 32. Rf4 {[%emt 0:00:41]} Kg7 {[%emt 0:00:33]} 33. Qf3 {[%emt 0:01:03]} Rd7 34. Rg4 {[%emt 0:01:11]} Rxg4 {[%emt 0:03:27]} 35. Qxg4+ {[%emt 0:00:04]} Kh7 {[%emt 0:00:09]} 36. Qe4+ {[%emt 0:00:11]} Kg7 {[%emt 0:00:06]} 37. Qg4+ {[%emt 0:00:05]} Kf8 {[%emt 0:02:36]} 38. Qf4 {[%emt 0:00:29]} Kg7 {[%emt 0:01:18]} 39. Qg4+ {[%emt 0:00:05]} Kh7 {[%emt 0:00:51]} 40. Qe4+ {[%emt 0:00:00]} Kg7 {[%emt 0:00:00]} 1/2-1/2

[Event "Cracovia Festival-A 2023"]
[Site "Krakow"]
[Date "2023.12.29"]
[Round "3.47"]
[White "Leskiewicz, Ignacy"]
[Black "Katsanis, Vasileios Dim"]
[Result "1/2-1/2"]
[ECO "A06"]
[WhiteElo "2177"]
[BlackElo "2133"]
[Annotator "ChessBase"]
[PlyCount "117"]
[EventDate "2023.12.24"]
[EventType "swiss"]
[EventCountry "POL"]
[SourceTitle "playchess.com"]
[Source "ChessBase"]
[SourceQuality "1"]
[TimeControl "40/5400+30:1800+30"]

1. Nf3 {[%emt 0:00:04]} d5 {[%emt 0:00:09]} 2. b3 {[%emt 0:00:15]} Nf6 {[%emt 0:01:30]} 3. Bb2 {[%emt 0:00:15]} c6 {[%emt 0:01:17]} 4. e3 {[%emt 0:00:25]} Bg4 {[%emt 0:01:02]} 5. h3 {[%emt 0:00:43]} Bxf3 {[%emt 0:01:07]} 6. Qxf3 {[%emt 0:00:10]} g6 {[%emt 0:12:30]} 7. d4 {[%emt 0:06:36]} Nbd7 {[%emt 0:00:40]} 8. Bd3 {[%emt 0:00:23]} Bg7 {[%emt 0:00:20]} 9. O-O {[%emt 0:02:19]} O-O {[%emt 0:00:47]} 10. c4 {[%emt 0:02:01]} Qc7 {[%emt 0:04:29]} 11. cxd5 {[%emt 0:11:01]} Nxd5 {[%emt 0:00:50]} 12. Rc1 {[%emt 0:07:43]} N7b6 {[%emt 0:06:47]} 13. Bf1 {[%emt 0:11:28]} Rad8 {[%emt 0:04:42]} 14. Na3 {[%emt 0:03:32]} e5 {[%emt 0:19:05]} 15. e4 {[%emt 0:04:57]} Ne7 {[%emt 0:00:05]} 16. d5 {[%emt 0:08:43]} Qd7 {[%emt 0:01:07]} 17. dxc6 {[%emt 0:09:50]} Nxc6 {[%emt 0:00:05]} 18. Nc4 {[%emt 0:02:19]} Nc8 {[%emt 0:02:23]} 19. Qg3 {[%emt 0:04:42]} Qe6 {[%emt 0:01:24]} 20. Ba3 {[%emt 0:05:10]} Rfe8 {[%emt 0:02:23]} 21. Ne3 {[%emt 0:00:38]} Nd6 {[%emt 0:05:09]} 22. Bxd6 {[%emt 0:01:04]} Qxd6 {[%emt 0:00:08]} 23. Kh1 {[%emt 0:01:47]} Nd4 {[%emt 0:00:50]} 24. Rd1 {[%emt 0:04:16]} Rc8 {[%emt 0:01:36]} 25. a4 {[%emt 0:04:54]} Rc3 {[%emt 0:09:09]} 26. Bc4 {[%emt 0:00:49]} Qf8 {[%emt 0:00:03]} 27. Rac1 {[%emt 0:02:50]} Rxc1 {[%emt 0:00:40]} 28. Rxc1 {[%emt 0:00:00]} Bh6 {[%emt 0:01:12]} 29. Qh4 {[%emt 0:00:45]} Nc6 {[%emt 0:10:18]} 30. Rd1 {[%emt 0:02:05]} Bxe3 {[%emt 0:00:41]} 31. fxe3 {[%emt 0:00:01]} Qe7 {[%emt 0:00:13]} 32. Qg4 {[%emt 0:00:52]} Rd8 {[%emt 0:00:31]} 33. Rf1 {[%emt 0:00:09]} Rf8 {[%emt 0:00:03]} 34. h4 {[%emt 0:01:07]} Kg7 {[%emt 0:03:16]} 35. h5 {[%emt 0:00:07]} Nd8 {[%emt 0:01:46]} 36. a5 {[%emt 0:01:25]} a6 {[%emt 0:00:16]} 37. Rd1 {[%emt 0:01:24]} Ne6 {[%emt 0:00:51]} 38. Qg3 {[%emt 0:00:44]} Ng5 {[%emt 0:01:35]} 39. Bd5 {[%emt 0:00:27]} gxh5 {[%emt 0:02:09]} 40. Bxb7 {[%emt 0:00:00]} Rb8 {[%emt 0:00:00]} 41. Bd5 {[%emt 0:15:30]} Rc8 {[%emt 0:10:52]} 42. b4 {[%emt 0:07:59]} f6 {[%emt 0:03:00]} 43. Qe1 {[%emt 0:00:37]} Rc2 {[%emt 0:01:52]} 44. b5 {[%emt 0:04:36]} axb5 {[%emt 0:00:53]} 45. a6 {[%emt 0:00:03]} h4 {[%emt 0:08:15]} 46. Rd2 {[%emt 0:03:28]} Rxd2 {[%emt 0:01:55]} 47. Qxd2 {[%emt 0:00:01]} Qa3 {[%emt 0:00:20]} 48. Bb7 {[%emt 0:02:04]} b4 {[%emt 0:02:27]} 49. Qd7+ {[%emt 0:00:22]} Kh6 {[%emt 0:05:14]} 50. Qe7 {[%emt 0:00:24]} Qc1+ {[%emt 0:03:46]} 51. Kh2 {[%emt 0:00:01]} Qxe3 {[%emt 0:00:54]} 52. Qxf6+ {[%emt 0:01:07]} Kh5 {[%emt 0:00:01]} 53. Bc6 {[%emt 0:01:34]} Qg3+ {[%emt 0:00:12]} 54. Kh1 {[%emt 0:00:08]} Qe1+ {[%emt 0:00:14]} 55. Kh2 {[%emt 0:00:03]} Qg3+ {[%emt 0:00:23]} 56. Kg1 {[%emt 0:00:12]} Nh3+ {[%emt 0:00:13]} 57. Kh1 {[%emt 0:01:21]} Nf2+ {[%emt 0:00:24]} 58. Kg1 {[%emt 0:00:01]} Nh3+ {[%emt 0:00:18]} 59. Kh1 {[%emt 0:00:05]} 1/2-1/2

[Event "Cracovia Festival-A 2023"]
[Site "Krakow"]
[Date "2023.12.29"]
[Round "3.48"]
[White "Zalega, Maciej"]
[Black "Kovalevsky, Stanislav"]
[Result "1-0"]
[ECO "B15"]
[WhiteElo "2113"]
[BlackElo "2163"]
[Annotator "ChessBase"]
[PlyCount "115"]
[EventDate "2023.12.24"]
[EventType "swiss"]
[EventCountry "POL"]
[SourceTitle "playchess.com"]
[Source "ChessBase"]
[SourceQuality "1"]
[TimeControl "40/5400+30:1800+30"]

1. e4 {[%emt 0:06:52]} c6 {[%emt 0:00:05]} 2. d4 {[%emt 0:00:03]} d5 {[%emt 0:00:03]} 3. Nc3 {[%emt 0:00:03]} dxe4 {[%emt 0:00:27]} 4. Nxe4 {[%emt 0:00:04]} Nf6 {[%emt 0:00:06]} 5. Nxf6+ {[%emt 0:00:03]} exf6 {[%emt 0:00:05]} 6. c3 {[%emt 0:00:04]} Bd6 {[%emt 0:00:20]} 7. Bd3 {[%emt 0:00:04]} O-O {[%emt 0:00:31]} 8. Qc2 {[%emt 0:00:03]} Re8+ {[%emt 0:00:15]} 9. Ne2 {[%emt 0:00:05]} h5 {[%emt 0:00:35]} 10. Be3 {[%emt 0:00:21]} Nd7 {[%emt 0:03:37]} 11. O-O-O {[%emt 0:00:10]} Nf8 {[%emt 0:01:02]} 12. Kb1 {[%emt 0:00:06]} Be6 {[%emt 0:00:52]} 13. c4 {[%emt 0:00:20]} b5 {[%emt 0:03:42]} 14. d5 {[%emt 0:00:20]} cxd5 {[%emt 0:12:49]} 15. c5 {[%emt 0:00:04]} Be5 {[%emt 0:19:41]} 16. f4 {[%emt 0:21:20]} Bc7 {[%emt 0:02:47]} 17. Bxb5 {[%emt 0:03:50]} Bg4 {[%emt 0:25:51]} 18. Bxe8 {[%emt 0:07:49]} Qxe8 {[%emt 0:00:03]} 19. h3 {[%emt 0:01:08]} Bxe2 {[%emt 0:04:43]} 20. Qxe2 {[%emt 0:00:06]} Bxf4 {[%emt 0:02:07]} 21. Rhe1 {[%emt 0:00:10]} Be5 {[%emt 0:00:42]} 22. Bd4 {[%emt 0:03:45]} Ng6 {[%emt 0:00:04]} 23. Bxe5 {[%emt 0:03:32]} fxe5 {[%emt 0:00:09]} 24. Rxd5 {[%emt 0:00:58]} Rb8 {[%emt 0:01:39]} 25. Qc2 {[%emt 0:03:44]} Rc8 {[%emt 0:05:17]} 26. g3 {[%emt 0:21:05]} f6 {[%emt 0:02:12]} 27. Rd6 {[%emt 0:07:21]} Nf8 {[%emt 0:01:31]} 28. c6 {[%emt 0:07:41]} Kh8 {[%emt 0:03:44]} 29. Qc4 {[%emt 0:10:12]} Qg6+ {[%emt 0:01:44]} 30. Ka1 {[%emt 0:00:13]} Qxg3 {[%emt 0:00:10]} 31. Red1 {[%emt 0:00:08]} Qxh3 {[%emt 0:04:39]} 32. c7 {[%emt 0:01:28]} Qg4 {[%emt 0:00:02]} 33. Qf7 {[%emt 0:02:46]} Ne6 {[%emt 0:01:15]} 34. Qxe6 {[%emt 0:00:54]} Qxe6 {[%emt 0:00:06]} 35. Rxe6 {[%emt 0:00:03]} Rxc7 {[%emt 0:00:04]} 36. Rh1 {[%emt 0:00:01]} Kg8 {[%emt 0:00:38]} 37. Kb1 {[%emt 0:00:31]} Kf7 {[%emt 0:00:08]} 38. Rd6 {[%emt 0:00:22]} Kg6 {[%emt 0:00:36]} 39. Rd2 {[%emt 0:01:29]} e4 {[%emt 0:00:32]} 40. Rd5 {[%emt 0:00:00]} f5 {[%emt 0:00:00]} 41. Rg1+ {[%emt 0:01:03]} Kf6 {[%emt 0:06:31]} 42. Rf1 {[%emt 0:00:23]} g6 {[%emt 0:01:38]} 43. Rd6+ {[%emt 0:00:38]} Kg5 {[%emt 0:00:44]} 44. Rg1+ {[%emt 0:00:13]} Kf4 {[%emt 0:00:01]} 45. Rdxg6 {[%emt 0:00:44]} h4 {[%emt 0:07:47]} 46. Rf1+ {[%emt 0:04:47]} Ke5 {[%emt 0:00:08]} 47. Rg5 {[%emt 0:01:06]} Rf7 {[%emt 0:00:09]} 48. Kc2 {[%emt 0:00:13]} a5 {[%emt 0:01:30]} 49. b3 {[%emt 0:01:44]} h3 {[%emt 0:01:06]} 50. Rh5 {[%emt 0:00:22]} h2 {[%emt 0:01:53]} 51. Kc3 {[%emt 0:02:47]} Rc7+ {[%emt 0:01:09]} 52. Kd2 {[%emt 0:00:05]} Kd4 {[%emt 0:00:02]} 53. Rfxf5 {[%emt 0:11:49]} e3+ {[%emt 0:00:36]} 54. Kd1 {[%emt 0:00:05]} Ke4 {[%emt 0:06:13]} 55. Rxa5 {[%emt 0:08:45]} Rd7+ {[%emt 0:01:31]} 56. Kc1 {[%emt 0:01:49]} Rc7+ {[%emt 0:01:44]} 57. Kb2 {[%emt 0:00:39]} Rf7 {[%emt 0:00:15]} 58. Rh4+ {[%emt 0:01:39]} 1-0

[Event "Cracovia Festival-A 2023"]
[Site "Krakow"]
[Date "2023.12.29"]
[Round "3.49"]
[White "Kazantzoglou, Stefanos"]
[Black "Kaim, Piotr"]
[Result "1-0"]
[ECO "B23"]
[WhiteElo "2152"]
[BlackElo "2127"]
[Annotator "ChessBase"]
[PlyCount "61"]
[EventDate "2023.12.24"]
[EventType "swiss"]
[EventCountry "POL"]
[SourceTitle "playchess.com"]
[Source "ChessBase"]
[SourceQuality "1"]
[TimeControl "40/5400+30:1800+30"]

1. e4 {[%emt 0:00:02]} c5 {[%emt 0:00:57]} 2. Nc3 {[%emt 0:00:06]} e6 {[%emt 0:00:23]} 3. d4 {[%emt 0:00:05]} cxd4 {[%emt 0:00:27]} 4. Qxd4 {[%emt 0:00:06]} Nc6 {[%emt 0:01:12]} 5. Qe3 {[%emt 0:00:54]} Nf6 {[%emt 0:05:30]} 6. Nf3 {[%emt 0:00:55]} Qc7 {[%emt 0:03:53]} 7. h3 {[%emt 0:07:26]} a6 {[%emt 0:09:09]} 8. Bd2 {[%emt 0:04:01]} Be7 {[%emt 0:01:14]} 9. Bd3 {[%emt 0:12:02]} d6 {[%emt 0:03:04]} 10. a3 {[%emt 0:12:36]} b5 {[%emt 0:03:40]} 11. O-O {[%emt 0:00:52]} O-O {[%emt 0:01:47]} 12. Ne2 {[%emt 0:08:16]} Bb7 {[%emt 0:02:50]} 13. Bc3 {[%emt 0:00:50]} Nd7 {[%emt 0:17:54]} 14. Nfd4 {[%emt 0:05:37]} Nce5 {[%emt 0:07:41]} 15. f4 {[%emt 0:03:52]} Nc4 {[%emt 0:00:18]} 16. Qg3 {[%emt 0:00:21]} Bf6 {[%emt 0:03:51]} 17. Kh1 {[%emt 0:11:06]} Kh8 {[%emt 0:03:14]} 18. Qf3 {[%emt 0:05:39]} Rae8 {[%emt 0:06:05]} 19. b3 {[%emt 0:04:35]} g6 {[%emt 0:01:04]} 20. bxc4 {[%emt 0:07:12]} bxc4 {[%emt 0:00:19]} 21. Rab1 {[%emt 0:00:34]} Ba8 {[%emt 0:08:58]} 22. Bb4 {[%emt 0:01:49]} e5 {[%emt 0:04:39]} 23. Nb3 {[%emt 0:03:08]} cxb3 {[%emt 0:02:12]} 24. cxb3 {[%emt 0:00:10]} exf4 {[%emt 0:02:26]} 25. Nxf4 {[%emt 0:00:02]} Ne5 {[%emt 0:00:50]} 26. Nd5 {[%emt 0:00:01]} Qd8 {[%emt 0:03:14]} 27. Qxf6+ {[%emt 0:00:05]} Qxf6 {[%emt 0:00:06]} 28. Nxf6 {[%emt 0:00:09]} Nxd3 {[%emt 0:00:06]} 29. Nxe8 {[%emt 0:01:06]} Rxe8 {[%emt 0:01:52]} 30. Rxf7 {[%emt 0:03:28]} Bxe4 {[%emt 0:00:53]} 31. Bc3+ {[%emt 0:00:29]} 1-0

[Event "Cracovia Festival-A 2023"]
[Site "Krakow"]
[Date "2023.12.29"]
[Round "3.50"]
[White "Krainski, Aleksander"]
[Black "Pniaczek, Marek"]
[Result "0-1"]
[ECO "A40"]
[WhiteElo "2102"]
[BlackElo "2135"]
[Annotator "ChessBase"]
[PlyCount "94"]
[EventDate "2023.12.24"]
[EventType "swiss"]
[EventCountry "POL"]
[SourceTitle "playchess.com"]
[Source "ChessBase"]
[SourceQuality "1"]
[TimeControl "40/5400+30:1800+30"]

1. d4 {[%emt 0:00:05]} b5 {[%emt 0:00:01]} 2. Nf3 {[%emt 0:00:16]} Bb7 {[%emt 0:00:14]} 3. e3 {[%emt 0:00:06]} a6 {[%emt 0:00:24]} 4. c4 {[%emt 0:00:16]} bxc4 {[%emt 0:00:38]} 5. Bxc4 {[%emt 0:00:12]} e6 {[%emt 0:00:42]} 6. Nc3 {[%emt 0:00:15]} Nf6 {[%emt 0:00:55]} 7. O-O {[%emt 0:00:17]} d5 {[%emt 0:03:58]} 8. Be2 {[%emt 0:04:50]} Bd6 {[%emt 0:02:53]} 9. a3 {[%emt 0:00:23]} O-O {[%emt 0:01:16]} 10. b4 {[%emt 0:00:18]} Nbd7 {[%emt 0:04:39]} 11. Bb2 {[%emt 0:04:29]} e5 {[%emt 0:02:47]} 12. dxe5 {[%emt 0:02:02]} Nxe5 {[%emt 0:00:30]} 13. Rc1 {[%emt 0:00:46]} Qe7 {[%emt 0:04:22]} 14. Na4 {[%emt 0:04:37]} Nxf3+ {[%emt 0:06:38]} 15. Bxf3 {[%emt 0:03:35]} a5 {[%emt 0:01:51]} 16. Nc5 {[%emt 0:00:40]} Bc6 {[%emt 0:00:38]} 17. Bd4 {[%emt 0:01:41]} axb4 {[%emt 0:01:11]} 18. axb4 {[%emt 0:00:05]} Rfb8 {[%emt 0:04:06]} 19. Qd2 {[%emt 0:03:30]} Ne4 {[%emt 0:17:35]} 20. Bxe4 {[%emt 0:08:52]} dxe4 {[%emt 0:00:25]} 21. Ra1 {[%emt 0:05:47]} Qh4 {[%emt 0:09:03]} 22. g3 {[%emt 0:03:02]} Qg4 {[%emt 0:07:06]} 23. Rxa8 {[%emt 0:07:10]} Rxa8 {[%emt 0:00:14]} 24. Ra1 {[%emt 0:00:33]} Rb8 {[%emt 0:03:00]} 25. Bc3 {[%emt 0:12:23]} h5 {[%emt 0:03:11]} 26. Qd1 {[%emt 0:09:54]} Qf5 {[%emt 0:01:33]} 27. Qd4 {[%emt 0:01:03]} Qg6 {[%emt 0:00:17]} 28. Kh1 {[%emt 0:00:33]} Re8 {[%emt 0:04:18]} 29. Qc4 {[%emt 0:02:34]} Qf5 {[%emt 0:03:04]} 30. Kg1 {[%emt 0:06:51]} h4 {[%emt 0:04:23]} 31. Bd4 {[%emt 0:01:29]} Rb8 {[%emt 0:04:31]} 32. Bc3 {[%emt 0:00:49]} Qg4 {[%emt 0:02:56]} 33. Qd4 {[%emt 0:02:42]} Re8 {[%emt 0:02:16]} 34. Qd1 {[%emt 0:01:56]} Qf5 {[%emt 0:00:09]} 35. Ra5 {[%emt 0:00:27]} Qg6 {[%emt 0:01:17]} 36. Kg2 {[%emt 0:01:11]} Rd8 {[%emt 0:02:17]} 37. Nb3 {[%emt 0:04:35]} Bd7 {[%emt 0:02:12]} 38. Nd4 {[%emt 0:02:11]} Bg4 {[%emt 0:00:48]} 39. Qa1 {[%emt 0:00:45]} Be7 {[%emt 0:01:10]} 40. Ra8 {[%emt 0:00:00]} Rxa8 {[%emt 0:00:00]} 41. Qxa8+ {[%emt 0:00:54]} Kh7 {[%emt 0:00:35]} 42. Qd5 {[%emt 0:02:53]} Bd6 {[%emt 0:08:31]} 43. b5 {[%emt 0:14:00]} hxg3 {[%emt 0:01:14]} 44. hxg3 {[%emt 0:00:08]} f5 {[%emt 0:00:52]} 45. Qe6 {[%emt 0:02:45]} Qh5 {[%emt 0:01:22]} 46. Qd7 {[%emt 0:00:05]} f4 {[%emt 0:02:08]} 47. Nf5 {[%emt 0:00:07]} Bf3+ {[%emt 0:00:09]} 0-1